bitfinex/quotes_ETHUSD_20220109
["timestamp","ask_amount","ask_price","bid_price","bid_amount"]
[1641695913437,1.10041684,3128.8,3128.4,0.00113685]
[1641695913634,1.40041684,3128.8,3128.4,0.00113685]
[1641695913833,0.0593325,3128.7,3128.4,0.00113685]
[1641695914034,5.0593325,3128.7,3128.3,0.00170528]
[1641695914475,1.0593325,3128.6,3128.3,0.00170528]
[1641695914676,1.5991599,3128.5,3128.3,0.00170528]
[1641695914876,0.79958,3128.4,3128.3,0.00170528]
[1641695915076,1.79958,3128.4,3128.2,0.0022737]
[1641695915277,1.8589125,3128.4,3128.2,0.0022737]
[1641695915476,0.0593325,3128.3,3128.2,0.0022737]
[1641695916678,3.4593325,3128.3,3128.2,0.0022737]
[1641695916879,4.4593325,3128.3,3128.2,0.0022737]
[1641695917080,5.15,3128.2,3128.1,3.2]
[1641695917279,1.599472,3128.0,3127.6,0.79958]
[1641695917478,0.79976,3127.8,3127.6,0.79958]
[1641695917680,0.79976,3127.8,3126.5,3.2072]
[1641695917681,5.94976,3127.8,3127.1,3.90172973]
[1641695917880,2.36175,3127.7,3127.1,3.90172973]
[1641695918146,7.7210825,3127.7,3127.2,0.00284211]
[1641695918343,0.0593325,3127.6,3127.2,0.00284211]
[1641695918646,1.3212125,3127.6,3127.2,0.00284211]
[1641695918844,6.3212125,3127.6,3127.2,0.00284211]
[1641695919045,0.0593325,3127.5,3127.2,0.00284211]
[1641695919247,0.0593325,3127.5,3126.6,0.00625265]
[1641695919248,1.59993,3127.3,3126.6,0.00625265]
[1641695919645,2.6592625,3127.3,3126.6,0.00625265]
[1641695919848,5.15,3127.2,3126.6,0.00625265]
[1641695920146,5.15,3127.2,3126.5,0.00682108]
[1641695920346,0.0593325,3127.1,3126.5,0.00682108]
[1641695920747,0.79999,3127.0,3126.5,0.00682108]
[1641695920946,0.80002,3126.9,3126.5,0.00682108]
[1641695921150,0.80002,3126.9,3126.3,0.00795792]
[1641695921151,1.9593425,3126.9,3126.3,0.00795792]
[1641695921348,0.0593325,3126.8,3126.3,0.00795792]
[1641695921547,0.0593325,3126.8,3126.0,0.00966319]
[1641695921789,5.15,3126.7,3125.9,6.15229292]
[1641695921977,5.15,3126.7,3125.9,2.25056319]
[1641695921978,5.15397896,3126.7,3125.9,2.25056319]
[1641695922178,0.00341054,3126.6,3125.9,2.25056319]
[1641695922379,0.80007,3126.3,3125.9,2.25056319]
[1641695922580,0.80007,3126.3,3125.7,3.5391777]
[1641695922780,0.00113684,3126.2,3125.8,2.06415426]
[1641695922982,0.00113684,3126.2,3125.8,2.06529111]
[1641695923184,0.00170527,3126.3,3125.8,2.06529111]
[1641695923582,0.80002,3126.6,3125.9,4.45]
[1641695923787,0.80002,3126.6,3125.9,4.45170527]
[1641695923985,0.7522937,3126.6,3126.0,1.94343911]
[1641695924386,0.7522937,3126.6,3126.0,0.00113684]
[1641695924586,0.80001,3126.3,3126.0,0.00113684]
[1641695924785,0.80001,3126.3,3125.9,0.00170527]
[1641695925384,0.8116262,3126.6,3125.9,0.00170527]
[1641695925385,0.0022737,3126.6,3125.9,0.00170527]
[1641695925825,0.8021437,3126.6,3125.9,0.00170527]
[1641695926226,0.5213325,3126.5,3125.9,0.00170527]
[1641695926429,0.80018,3126.3,3125.9,0.00170527]
[1641695926626,1.56218,3126.3,3125.7,0.00284212]
[1641695926824,1.86218,3126.3,3125.6,0.00341054]
[1641695927025,0.0593325,3126.2,3125.6,0.00341054]
[1641695927626,0.80023,3126.1,3125.6,0.00341054]
[1641695928026,0.80023,3126.1,3125.3,0.00511581]
[1641695928027,1.1595625,3126.1,3125.3,0.00511581]
[1641695928227,1.1595625,3126.1,3125.3,1.90583351]
[1641695928527,1.1595625,3126.1,3125.4,0.00454739]
[1641695928929,3.48715659,3126.3,3125.4,0.00454739]
[1641695929380,0.0593325,3126.2,3125.4,0.00454739]
[1641695929576,0.5213325,3126.2,3125.3,0.00511581]
[1641695929877,0.80022,3125.7,3125.3,1.90635893]
[1641695930076,0.80022,3125.7,3125.3,0.00511581]
[1641695930277,0.5213325,3126.2,3125.4,1.31922285]
[1641695930278,0.0593325,3126.2,3125.4,1.31922285]
[1641695930477,0.00113685,3126.4,3125.6,1.55368726]
[1641695930677,0.00113685,3126.4,3125.7,2.04197027]
[1641695930875,0.00113685,3126.4,3125.7,2.04481239]
[1641695931076,0.00113685,3126.4,3125.8,0.00227369]
[1641695931279,0.80110685,3126.4,3125.9,1.55368726]
[1641695931676,0.05920043,3126.3,3126.0,0.00113684]
[1641695932275,0.05920043,3126.3,3126.0,1.5548241]
[1641695932876,0.80018,3126.2,3126.0,1.5548241]
[1641695933323,1.15938043,3126.2,3126.0,0.00113684]
[1641695933623,0.85938043,3126.2,3125.8,0.00227369]
[1641695934026,1.0,3126.6,3126.4,3.35282056]
[1641695934226,1.0,3126.6,3126.0,1.40735569]
[1641695934227,0.05920043,3126.6,3126.5,1.90268378]
[1641695934425,1.0,3126.9,3126.2,6.14033116]
[1641695934624,0.00113685,3126.6,3126.2,6.14033116]
[1641695935228,0.00113685,3126.6,3126.2,3.9637]
[1641695935429,0.06033728,3126.6,3126.4,1.55368726]
[1641695935627,0.05726567,3126.6,3126.4,1.55368726]
[1641695936231,0.05726567,3126.6,3126.2,5.51738726]
[1641695936632,0.05726567,3126.6,3126.3,0.00170527]
[1641695936875,0.85718567,3126.6,3126.3,1.55539253]
[1641695937275,0.85718567,3126.6,3126.4,0.00113685]
[1641695937975,4.0,3126.8,3126.4,0.00113685]
[1641695938374,4.3,3126.8,3126.4,0.00113685]
[1641695938577,4.6,3126.8,3126.4,1.55482411]
[1641695938977,0.79996,3126.6,3126.5,4.67181268]
[1641695939281,0.462,3127.5,3126.5,1.89779555]
[1641695939678,0.00113684,3126.8,3126.5,1.89779555]
[1641695939879,0.00113684,3126.8,3126.4,0.00113685]
[1641695940278,0.79989,3126.7,3126.4,0.00113685]
[1641695940730,0.79989,3126.7,3126.5,3.2]
[1641695942234,0.79989,3126.7,3126.5,4.38465088]
[1641695942433,0.00113684,3126.8,3126.5,4.38465088]
[1641695943832,0.00113684,3126.8,3126.5,3.2]
[1641695944031,0.00113684,3126.8,3126.6,1.88635554]
[1641695944279,0.00113684,3126.8,3126.5,3.2]
[1641695944775,6.5938,3127.6,3127.2,3.376647]
[1641695944974,6.5938,3127.6,3126.5,3.2]
[1641695944975,4.2281,3127.6,3126.8,3.38442651]
[1641695945175,0.00170527,3127.1,3126.6,2.0395586]
[1641695945575,0.00113685,3127.0,3126.6,1.88719063]
[1641695945877,0.00284212,3127.3,3126.6,1.87365513]
[1641695946274,0.79979,3127.1,3126.6,0.00113684]
[1641695946474,0.79979,3127.1,3126.6,1.88753195]
[1641695946675,0.00113685,3127.0,3126.6,0.00113684]
[1641695947876,0.79983,3126.9,3126.6,0.00113684]
[1641695948131,0.79983,3126.9,3126.6,1.87698783]
[1641695948527,0.79983,3126.9,3126.6,0.00113684]
[1641695952181,0.79983,3126.9,3126.6,1.93302498]
[1641695952388,0.00113685,3127.0,3126.6,1.93302498]
[1641695952579,0.00113685,3127.0,3126.9,6.29181337]
[1641695952780,0.00113685,3127.0,3126.9,7.45300553]
[1641695953981,0.7973563,3127.6,3127.0,5.15]
[1641695954180,0.7973563,3127.6,3126.9,3.30515486]
[1641695954181,1.59927,3127.9,3127.3,0.69746555]
[1641695954379,1.59927,3127.9,3126.9,1.00214933]
[1641695954380,1.59927,3127.9,3127.4,1.95007062]
[1641695954581,1.59927,3127.9,3127.0,2.31093544]
[1641695954988,1.59927,3127.9,3127.0,3.11056544]
[1641695955182,1.59927,3127.9,3127.0,2.31093544]
[1641695955383,0.79963,3127.6,3127.3,0.7995887]
[1641695955625,1.59927,3127.9,3127.6,1.56572833]
[1641695956027,1.9615824,3128.3,3127.7,1.89971782]
[1641695956028,0.8349824,3128.3,3127.7,1.89971782]
[1641695956229,0.462,3128.4,3127.7,1.89971782]
[1641695956432,0.00625266,3128.1,3127.5,2.25262531]
[1641695956630,0.80576266,3128.1,3127.5,2.25262531]
[1641695956828,0.00568423,3128.0,3127.5,2.25262531]
[1641695957230,0.00511581,3127.9,3127.7,1.56369347]
[1641695957634,0.00454739,3127.8,3127.7,1.56369347]
[1641695957933,0.00454739,3127.8,3127.5,2.25262531]
[1641695957934,0.80412739,3127.8,3127.5,2.25262531]
[1641695958331,0.00397896,3127.7,3127.5,2.25262531]
[1641695958531,0.00397896,3127.7,3127.2,1.97304148]
[1641695958731,0.00341054,3127.6,3127.2,1.97304148]
[1641695958931,0.00341054,3127.6,3127.1,6.96113126]
[1641695959130,2.39898,3128.3,3127.1,6.96113126]
[1641695959131,0.00284212,3127.5,3127.1,6.96113126]
[1641695959377,0.00284212,3127.5,3127.2,1.88668511]
[1641695959577,0.00227369,3127.4,3127.2,1.88668511]
[1641695959976,0.00170527,3127.3,3127.2,1.88668511]
[1641695960377,0.80140527,3127.3,3127.1,3.7814]
[1641695960777,0.00113685,3127.2,3126.9,1.92903196]
[1641695960981,0.00113685,3127.2,3126.8,1.2129]
[1641695961184,0.00227369,3127.4,3126.6,0.00113684]
[1641695961382,0.79995,3127.0,3126.6,0.00113684]
[1641695961580,0.79991,3126.8,3126.6,0.00227369]
[1641695961983,0.05893688,3126.7,3126.6,0.00227369]
[1641695967075,0.79991,3126.8,3126.7,4.94106312]
[1641695967478,4.65,3126.7,3126.5,0.01983699]
[1641695967680,5.45009,3126.7,3126.5,0.01983699]
[1641695967877,4.65902688,3126.6,3126.5,0.01983699]
[1641695968081,6.25902688,3126.6,3126.5,0.01983699]
[1641695968375,6.25902688,3126.6,3125.6,7.12972973]
[1641695968376,3.55,3126.5,3125.6,3.228]
[1641695968578,3.55,3126.5,3125.5,5.57707427]
[1641695968579,1.0,3126.4,3125.5,5.57707427]
[1641695968779,1.0,3126.4,3125.7,0.00568424]
[1641695968977,0.05880567,3126.3,3125.7,0.00568424]
[1641695969380,3.2002,3126.6,3126.5,4.30122312]
[1641695969579,3.2002,3126.6,3125.7,0.00568424]
[1641695969779,0.8001,3126.1,3125.5,5.56532728]
[1641695969979,0.8001,3126.1,3125.5,3.6643]
[1641695970178,1.6002,3126.2,3125.5,3.6643]
[1641695970179,0.76526489,3126.2,3125.5,3.6643]
[1641695970381,1.0,3126.3,3125.5,3.6643]
[1641695970633,0.80016,3126.1,3125.5,3.6643]
[1641695970829,0.462,3126.0,3125.5,3.6643]
[1641695971029,0.762,3126.0,3125.5,3.6643]
[1641695971230,0.80025,3125.8,3125.5,3.6643]
[1641695971430,0.80025,3125.8,3125.3,3.90172973]
[1641695971831,0.80025,3125.8,3125.4,0.00738951]
[1641695972230,0.80025,3125.8,3125.0,0.0096632]
[1641695972431,0.80025,3125.8,3124.9,0.01023162]
[1641695972631,0.8003,3125.7,3124.9,0.01023162]
[1641695972830,0.80028,3125.3,3124.9,0.01023162]
[1641695973831,1.0,3125.6,3125.5,3.41361604]
[1641695974033,0.8003,3125.7,3124.9,0.01023162]
[1641695974288,0.8003,3125.7,3125.5,0.00682108]
[1641695974484,0.85897478,3125.7,3125.3,2.0]
[1641695974684,2.45955478,3125.7,3125.6,0.00625266]
[1641695975184,1.65925478,3125.7,3125.6,0.00625266]
[1641695975584,1.2402,3126.3,3125.6,0.00625266]
[1641695975787,0.462,3126.4,3125.6,0.00625266]
[1641695975788,1.60021,3126.0,3125.6,0.00625266]
[1641695975984,0.80009,3125.9,3125.6,0.00625266]
[1641695976385,0.80009,3125.9,3125.8,5.14588886]
[1641695976684,1.0,3126.3,3125.8,1.40100467]
[1641695976889,1.0,3126.3,3125.9,1.88845922]
[1641695977085,3e-05,3126.5,3126.0,2.35]
[1641695977287,1.0,3126.4,3126.0,2.35397896]
[1641695977487,0.80002,3126.8,3126.2,3.8]
[1641695977686,0.80002,3126.8,3126.1,0.00341054]
[1641695977687,0.79999,3126.5,3126.1,0.00341054]
[1641695977887,0.79999,3126.5,3126.3,0.00227369]
[1641695978129,1.60003,3126.4,3126.1,0.87583721]
[1641695978325,1.60003,3126.4,3126.2,0.00284212]
[1641695979026,0.79984,3126.7,3126.3,1.35160572]
[1641695979223,1.59967,3127.0,3126.4,2.18684255]
[1641695979425,0.00284212,3127.2,3126.4,2.18854782]
[1641695979624,0.00113685,3126.9,3126.5,3.99783685]
[1641695979825,0.00227369,3127.1,3126.8,1.31253359]
[1641695980026,0.00227369,3127.1,3126.6,2.21122354]
[1641695980027,1.59964,3127.1,3126.6,2.21122354]
[1641695980226,0.00170527,3127.0,3126.6,2.21122354]
[1641695980426,0.79982,3126.8,3126.6,2.21122354]
[1641695980625,0.74412508,3126.8,3126.6,2.21122354]
[1641695980831,0.74412508,3126.8,3126.5,0.00113685]
[1641695981027,0.74412508,3126.8,3126.5,1.9475671]
[1641695981328,0.74412508,3126.8,3126.5,0.00113685]
[1641695981773,0.74412508,3126.8,3126.4,0.00170527]
[1641695981974,0.74412508,3126.8,3126.5,3.2]
[1641695983781,0.74412508,3126.8,3126.5,4.36002659]
[1641695984181,1.60091685,3126.9,3126.6,2.03753591]
[1641695984182,0.00113685,3126.9,3126.6,2.03753591]
[1641695984580,2.39957,3127.5,3126.6,2.03753591]
[1641695984782,2.39957,3127.5,3126.7,0.80079685]
[1641695984982,0.00284211,3127.4,3126.8,2.0994439]
[1641695985382,0.00227369,3127.3,3126.8,2.0994439]
[1641695985626,0.80196369,3127.3,3126.8,2.78279769]
[1641695985825,0.00170527,3127.2,3126.8,2.78279769]
[1641695986028,0.00170527,3127.2,3126.8,0.7997033]
[1641695986325,0.00113684,3127.1,3126.9,1.86475687]
[1641695986525,0.00113684,3127.1,3126.7,0.00113685]
[1641695986928,0.80086684,3127.1,3126.7,0.00113685]
[1641695987725,0.80086684,3127.1,3126.7,0.80087275]
[1641695987927,0.80086684,3127.1,3126.8,1.88201301]
[1641695988530,0.80086684,3127.1,3126.8,1.90301838]
[1641695988728,0.80086684,3127.1,3126.9,1.55981879]
[1641695989475,1.40086684,3127.1,3126.9,1.55981879]
[1641695990276,1.40086684,3127.1,3126.7,0.00113685]
[1641695990476,0.79994,3127.0,3126.7,0.00113685]
[1641695990677,0.79994,3127.0,3126.6,0.00170527]
[1641695990876,0.79994,3126.8,3126.6,0.00170527]
[1641695999684,0.79994,3126.8,3126.6,1.93415953]
[1641696000082,2.40006,3126.9,3126.7,0.00113685]
[1641696000928,0.79994,3126.8,3126.6,3.43890026]
[1641696001228,0.79994,3126.8,3126.7,1.91220404]
[1641696001431,0.79994,3126.8,3126.7,2.72668461]
[1641696001727,0.79994,3126.8,3126.7,3.47202283]
[1641696002529,0.79994,3126.8,3126.7,1.91220404]
[1641696003331,0.79994,3126.8,3126.7,2.58767851]
[1641696003632,0.00113684,3127.1,3126.8,1.08351779]
[1641696003831,0.00113684,3127.1,3126.9,2.35796586]
[1641696004282,0.00113684,3127.1,3127.0,8.7683]
[1641696004476,0.00113684,3127.1,3127.0,9.9188]
[1641696004676,0.00113684,3127.1,3127.0,10.9188]
[1641696004976,0.79955,3127.8,3127.1,5.15]
[1641696005176,0.79955,3127.8,3127.0,5.7688]
[1641696005177,0.79955,3127.8,3127.2,2.02231645]
[1641696005376,0.79955,3127.8,3127.0,4.7688]
[1641696005776,1.09955,3127.8,3127.0,3.6183]
[1641696005976,1.59963,3127.7,3127.0,3.6183]
[1641696006276,0.00284212,3127.6,3127.1,1.9568167]
[1641696006476,0.80254212,3127.6,3127.2,0.87223808]
[1641696006679,2.43462201,3127.7,3127.2,0.87223808]
[1641696006680,0.0022737,3127.5,3127.2,0.87223808]
[1641696007075,0.00170527,3127.4,3127.2,0.87223808]
[1641696007476,0.00113685,3127.3,3127.2,1.56352646]
[1641696008138,0.00113685,3127.3,3127.1,1.56352646]
[1641696008535,0.00113685,3127.3,3127.2,0.7117022]
[1641696008935,0.80087685,3127.3,3127.2,0.7117022]
[1641696009135,0.80087685,3127.3,3127.2,2.5753372]
[1641696009337,0.80087685,3127.3,3127.2,4.13886366]
[1641696009534,0.00113685,3127.3,3127.2,4.13886366]
[1641696010336,0.76554791,3128.0,3127.3,3.3]
[1641696010637,0.00170527,3127.6,3127.4,1.93346934]
[1641696011036,0.00113685,3127.5,3127.2,2.64106625]
[1641696011885,0.00113685,3127.5,3127.4,1.5560059]
[1641696012081,0.00113685,3127.5,3127.3,1.5560059]
[1641696012285,0.00113685,3127.5,3127.4,1.881567]
[1641696012881,0.80076685,3127.5,3127.4,1.881567]
[1641696013081,0.80076685,3127.5,3127.3,1.5560059]
[1641696013884,0.80076685,3127.5,3127.2,4.7560059]
[1641696014183,3.8499,3127.3,3127.2,3.2]
[1641696014582,4.90844416,3127.3,3127.2,3.2]
[1641696014781,5.20844416,3127.3,3127.2,3.2]
[1641696015182,5.20844416,3127.3,3126.7,1.55714275]
[1641696015384,1.762,3127.2,3126.7,0.00113685]
[1641696015631,0.79996,3127.0,3126.8,0.00284212]
[1641696015833,0.79997,3126.8,3126.5,1.53574531]
[1641696016033,1.79997,3126.8,3126.5,1.53574531]
[1641696016233,1.79997,3126.8,3126.2,3.9571]
[1641696016234,0.05854416,3126.7,3126.2,3.9571]
[1641696016633,0.05854416,3126.7,3126.3,0.00170527]
[1641696016834,0.85852416,3126.7,3126.3,0.00170527]
[1641696017035,0.68289169,3126.7,3126.3,0.00170527]
[1641696017533,0.8,3126.6,3126.3,0.00170527]
[1641696018337,1.60006,3126.5,3125.8,0.00454739]
[1641696018536,1.0,3126.5,3125.8,0.00454739]
[1641696018935,1.60011,3126.6,3125.8,0.00454739]
[1641696019135,0.05854416,3126.5,3125.8,0.00454739]
[1641696019378,0.80004,3126.2,3125.8,0.00454739]
[1641696019581,0.80013,3126.1,3125.8,0.00454739]
[1641696019781,0.80013,3126.1,3125.7,0.00511582]
[1641696019978,1.0,3126.4,3125.6,0.00568424]
[1641696020379,0.05841383,3126.3,3125.7,0.66146672]
[1641696020580,0.80014,3126.0,3125.7,0.66146672]
[1641696020778,0.80014,3126.0,3125.8,0.00454739]
[1641696022278,0.05841383,3126.3,3125.8,0.00454739]
[1641696022780,0.80014,3126.0,3125.8,0.00454739]
[1641696023627,0.80014,3126.0,3125.8,3.20454739]
[1641696024028,0.79996,3126.2,3126.1,1.29039652]
[1641696024228,1.0,3126.7,3126.1,1.29039652]
[1641696024428,1.59982,3126.7,3126.6,1.24332126]
[1641696024632,0.00170527,3126.9,3126.6,0.87723153]
[1641696025028,0.00113684,3126.8,3126.6,0.87723153]
[1641696025329,0.79985,3126.8,3126.6,0.87723153]
[1641696027780,0.79985,3126.8,3126.7,1.55771358]
[1641696028179,0.80098684,3126.8,3126.7,1.55771358]
[1641696028378,0.80098684,3126.8,3126.6,0.87723153]
[1641696029980,0.00113684,3126.8,3126.7,3.95852717]
[1641696030381,0.00113684,3126.8,3126.7,6.55852717]
[1641696030628,0.00113684,3126.8,3126.7,4.25852717]
[1641696031431,0.00113684,3126.8,3126.7,7.35823867]
[1641696032433,0.83502704,3128.0,3127.6,1.31175344]
[1641696032630,0.79952,3127.9,3127.7,0.79194273]
[1641696032830,0.80577266,3127.9,3127.7,0.79194273]
[1641696033030,1.80577266,3127.9,3127.7,0.79194273]
[1641696033232,0.80577266,3127.9,3127.7,0.79194273]
[1641696034288,0.80577266,3127.9,3127.7,3.99194273]
[1641696036684,0.83502704,3128.0,3127.7,3.99194273]
[1641696037887,0.79952,3127.9,3127.7,3.99194273]
[1641696038535,0.79952,3127.9,3127.7,5.54240718]
[1641696040136,0.79952,3127.9,3127.7,3.99194273]
[1641696040344,0.79952,3127.9,3127.7,5.15136409]
[1641696040541,0.79947,3128.1,3127.7,5.15136409]
[1641696041139,0.79947,3128.1,3127.8,1.55046445]
[1641696043782,0.857991,3128.1,3127.7,5.54240718]
[1641696043983,0.857991,3128.1,3127.7,4.75046445]
[1641696044185,2.0614028,3128.0,3127.7,4.75046445]
[1641696044386,0.79982,3127.7,3126.9,0.0086145]
[1641696044585,2.67099638,3127.6,3127.4,1.54926986]
[1641696044785,1.09982,3127.7,3127.4,1.54926986]
[1641696044985,0.058521,3127.6,3127.5,0.00227369]
[1641696045185,6.0,3127.6,3127.5,0.00227369]
[1641696045388,5.15,3127.5,3126.9,0.0086145]
[1641696045632,0.7999,3127.1,3126.9,0.0086145]
[1641696045831,0.7999,3127.1,3127.0,0.00284212]
[1641696046031,5.20567888,3127.0,3126.9,0.0086145]
[1641696046433,0.05567888,3127.0,3126.9,0.0086145]
[1641696046835,0.79967,3127.3,3126.9,0.0086145]
[1641696047034,1.65775175,3127.6,3126.9,0.0086145]
[1641696047236,0.00170527,3127.3,3126.9,0.0086145]
[1641696047633,0.00113685,3127.2,3126.9,0.0086145]
[1641696048036,1.59934,3127.6,3126.9,0.0086145]
[1641696048037,0.00284212,3127.5,3126.9,0.0086145]
[1641696048236,3.25764955,3128.1,3127.9,0.462]
[1641696048435,54.77373472,3128.6,3127.9,0.462]
[1641696048436,0.16697557,3129.4,3128.4,0.80919059]
[1641696048637,1.26129,3129.6,3128.4,0.80919059]
[1641696048834,0.83470659,3129.5,3128.0,2.2314141]
[1641696049035,0.79942,3129.1,3128.0,2.2314141]
[1641696049306,0.79945,3128.5,3128.0,2.2314141]
[1641696049698,0.00511581,3128.4,3127.9,0.462]
[1641696050100,0.00454738,3128.3,3128.2,3.91474902]
[1641696050301,0.00454738,3128.3,3128.2,0.76474902]
[1641696050805,5.32982223,3129.0,3128.3,3.0]
[1641696051001,5.32982223,3129.0,3128.3,4.93827731]
[1641696051206,0.0022737,3128.7,3128.2,0.76474902]
[1641696051402,0.79939,3128.6,3128.2,0.76474902]
[1641696051603,0.70109528,3128.6,3127.9,2.060632]
[1641696051809,0.00113685,3128.5,3127.9,0.462]
[1641696052003,0.00113685,3128.5,3128.0,0.00170527]
[1641696052804,0.79944,3128.4,3128.0,0.00170527]
[1641696055034,0.79944,3128.4,3128.0,3.20170527]
[1641696055435,0.79944,3128.4,3128.1,0.00113684]
[1641696056433,0.00113685,3128.5,3128.1,0.00113684]
[1641696057984,0.79944,3128.4,3128.1,0.00113684]
[1641696060834,0.00113685,3128.5,3128.1,0.00113684]
[1641696061736,0.00113685,3128.5,3128.2,0.79933]
[1641696061934,0.00113685,3128.5,3128.3,2.11189976]
[1641696062335,0.00113685,3128.5,3128.3,2.71189976]
[1641696062535,0.00113685,3128.5,3128.4,8.4542257]
[1641696062735,0.00113685,3128.5,3128.4,8.59242567]
[1641696062939,6.16,3129.9,3129.5,0.68268909]
[1641696063139,6.16,3129.9,3129.5,3.40568843]
[1641696063338,6.16,3129.9,3129.5,1.48168909]
[1641696064386,6.16,3129.9,3129.5,0.68268909]
[1641696064585,0.79907,3129.8,3129.5,0.68268909]
[1641696064786,6.16,3129.9,3129.6,1.90479642]
[1641696064987,0.00682108,3129.7,3129.6,1.90479642]
[1641696065187,0.00682108,3129.7,3129.5,0.68268909]
[1641696065587,0.00625266,3129.6,3129.5,0.68268909]
[1641696065787,0.00625266,3129.6,3129.5,2.62910327]
[1641696066587,0.00625266,3129.6,3129.5,3.42807327]
[1641696067389,0.00625266,3129.6,3129.5,5.02807327]
[1641696067588,0.00625266,3129.6,3129.5,3.42807327]
[1641696068035,0.00625266,3129.6,3129.5,9.87807327]
[1641696068236,5.266e-05,3129.6,3129.5,10.34007327]
[1641696068435,0.83420854,3131.0,3130.9,1.38518238]
[1641696068636,3.0644,3131.8,3130.8,0.81742079]
[1641696068835,3.0644,3131.8,3130.3,2.396054]
[1641696068836,0.83410485,3131.6,3130.3,1.597364]
[1641696069638,1.59749,3131.5,3130.3,1.597364]
[1641696069838,1.60829005,3131.5,3130.3,1.597364]
[1641696070438,1.60829005,3131.5,3130.4,2.87018797]
[1641696070837,1.90829005,3131.5,3130.0,1.94912665]
[1641696071037,5.3,3131.4,3130.1,1.55874343]
[1641696071246,0.79888,3130.9,3130.1,1.55874343]
[1641696071641,0.00682108,3130.8,3130.1,1.55874343]
[1641696071892,0.00682108,3130.8,3130.4,0.84774656]
[1641696072096,0.00625266,3130.7,3130.4,0.84774656]
[1641696072493,0.00568423,3130.6,3130.4,0.84774656]
[1641696072895,0.7989,3131.2,3130.4,0.84774656]
[1641696072896,0.00511581,3130.5,3130.4,0.84774656]
[1641696073796,1.59776,3131.0,3130.9,1.60799161]
[1641696074895,1.59776,3131.0,3130.9,4.80799161]
[1641696075741,5.15,3130.9,3130.3,1.55874343]
[1641696076140,5.15,3130.9,3130.1,1.55874343]
[1641696076141,0.79909,3130.6,3130.1,1.55874343]
[1641696076540,0.79909,3130.6,3130.2,0.00170527]
[1641696078139,0.79909,3130.6,3130.1,0.00227369]
[1641696079140,0.79909,3130.6,3130.0,0.00284212]
[1641696079684,0.79909,3130.6,3129.9,1.55874343]
[1641696079685,4.85,3130.5,3129.9,0.12358555]
[1641696079890,4.85284212,3130.5,3129.9,0.12358555]
[1641696080083,1.0022737,3130.4,3129.9,0.12358555]
[1641696080485,0.00170527,3130.3,3129.9,0.12358555]
[1641696080683,0.00170527,3130.3,3129.5,0.79278337]
[1641696080684,0.79899,3130.2,3129.5,0.79278337]
[1641696080883,0.80012685,3130.2,3129.5,0.79278337]
[1641696081083,0.80012685,3130.2,3129.6,0.00227369]
[1641696084837,0.80012685,3130.2,3129.6,3.2]
[1641696085235,0.80012685,3130.2,3129.7,0.00170527]
[1641696086438,2.71061652,3130.1,3129.7,0.00170527]
[1641696086638,0.79923,3129.9,3129.7,0.00170527]
[1641696086886,1.09923,3129.9,3129.7,0.00170527]
[1641696087087,5.15,3129.8,3129.6,3.2]
[1641696087294,9.15,3129.8,3129.6,3.2]
[1641696087488,6.15,3129.7,3129.6,3.2]
[1641696087688,6.45,3129.7,3129.6,3.2]
[1641696088696,1.3,3129.7,3129.6,3.2]
[1641696088891,9.7,3129.7,3129.6,3.2]
[1641696089291,5.34342631,3129.7,3129.6,3.2]
[1641696089692,39.0,3129.8,3129.6,3.2]
[1641696090192,1.59849,3129.7,3129.6,3.2]
[1641696090391,43.59849,3129.7,3129.6,3.2]
[1641696090640,1.59849,3129.7,3129.6,3.2]
[1641696092035,1.5633741,3129.8,3129.6,3.136]
[1641696092437,1.8633741,3129.8,3129.6,3.136]
[1641696092636,0.3,3129.7,3129.6,3.136]
[1641696093138,4.09849,3129.7,3129.6,3.136]
[1641696093536,5.09849,3129.7,3129.6,3.136]
[1641696093738,2.89849,3129.7,3129.6,3.136]
[1641696094585,1.59849,3129.7,3129.6,3.136]
[1641696094788,0.79924,3129.8,3129.6,3.136]
[1641696094987,0.79903,3130.0,3129.6,3.136]
[1641696095386,0.00113685,3129.9,3129.6,3.136]
[1641696096186,0.00113685,3129.9,3129.4,0.73274281]
[1641696096489,0.00113685,3129.9,3129.7,1.30716557]
[1641696096885,0.00113685,3129.9,3129.6,1.5641269]
[1641696098141,0.00113685,3129.9,3129.6,2.88961656]
[1641696099936,0.00113685,3129.9,3129.7,1.5641269]
[1641696101040,0.79905,3129.8,3129.7,1.5641269]
[1641696101239,0.79905,3129.8,3129.5,0.00113684]
[1641696101637,0.7904355,3129.8,3129.5,0.00113684]
[1641696102686,0.7904355,3129.8,3129.0,0.00397896]
[1641696103085,1.7904355,3129.8,3129.0,0.00397896]
[1641696103283,0.7904355,3129.8,3129.4,0.70592258]
[1641696103483,1.7904355,3129.8,3129.4,0.70592258]
[1641696103684,0.7904355,3129.8,3129.4,0.70592258]
[1641696103884,1.7904355,3129.8,3129.4,0.70592258]
[1641696104484,1.7904355,3129.8,3129.0,0.00397896]
[1641696105532,1.7904355,3129.8,3129.4,0.80922012]
[1641696105931,0.7904355,3129.8,3129.4,0.80922012]
[1641696106432,1.59938685,3129.9,3129.7,1.34599233]
[1641696106433,0.00113685,3129.9,3129.7,1.34599233]
[1641696108433,1.0,3130.4,3129.7,1.34599233]
[1641696108633,0.83430734,3130.5,3130.4,0.81635796]
[1641696109035,0.83430734,3130.5,3129.7,1.34599233]
[1641696109288,3.03230734,3130.5,3129.5,7.7004]
[1641696109484,0.00284212,3130.4,3129.5,7.7004]
[1641696109682,1.00284212,3130.4,3129.6,0.00170527]
[1641696109882,0.79916,3130.0,3129.6,0.00170527]
[1641696110489,0.79916,3130.0,3129.2,0.00397896]
[1641696110685,0.79916,3130.0,3129.6,0.80017692]
[1641696110886,1.59828,3130.0,3129.6,0.80017692]
[1641696111086,0.7991,3129.8,3129.7,0.00113685]
[1641696115636,0.7991,3129.8,3129.7,3.10113685]
[1641696116234,1.0991,3129.8,3129.7,3.10113685]
[1641696116434,4.3491,3129.8,3129.7,3.10113685]
[1641696116634,5.3491,3129.8,3129.7,3.10113685]
[1641696117084,2.0991,3129.8,3129.7,3.10113685]
[1641696119385,1.7991,3129.8,3129.7,3.10113685]
[1641696119584,1.7991,3129.8,3129.7,3.03713685]
[1641696119784,0.7991,3129.8,3129.7,3.03713685]
[1641696120084,0.7991,3129.8,3129.7,5.9902985]
[1641696120285,0.79897,3130.0,3129.7,5.9902985]
[1641696120533,0.79897,3130.0,3129.8,2.13878936]